bitfinex/quotes_BTCUSD_20240728
["timestamp","ask_amount","ask_price","bid_price","bid_amount"]
[1722141117180,0.03513041,67864.0,67863.0,0.269803]
[1722141117389,0.02413041,67864.0,67863.0,0.269803]
[1722141117588,0.02413041,67864.0,67863.0,0.151919]
[1722141117792,0.02413041,67864.0,67863.0,0.269803]
[1722141118517,0.02413041,67864.0,67863.0,0.271803]
[1722141120023,0.02413041,67864.0,67863.0,0.153919]
[1722141120261,0.02413041,67864.0,67863.0,0.271803]
[1722141122082,0.02413041,67864.0,67863.0,0.89654728]
[1722141122231,0.02413041,67864.0,67863.0,1.12970335]
[1722141122449,0.001,67864.0,67863.0,1.12970335]
[1722141122666,0.001,67864.0,67863.0,1.28500335]
[1722141122875,0.001,67864.0,67863.0,1.30600335]
[1722141123136,0.001,67864.0,67863.0,1.54177235]
[1722141123282,0.001,67864.0,67863.0,1.54277235]
[1722141123486,0.25106619,67893.0,67886.0,0.235689]
[1722141123487,0.45077872,67887.0,67886.0,0.235689]
[1722141123690,0.45986386,67887.0,67886.0,0.493733]
[1722141123862,0.45986386,67887.0,67886.0,0.729422]
[1722141123863,0.00908514,67887.0,67886.0,0.729422]
[1722141124064,0.01539919,67893.0,67889.0,0.235677]
[1722141124288,0.01539919,67893.0,67890.0,0.1402]
[1722141124495,0.01539919,67893.0,67890.0,0.26098264]
[1722141124700,0.01539919,67893.0,67891.0,0.117835]
[1722141124944,0.01539919,67893.0,67890.0,0.1402]
[1722141125459,0.00916231,67892.0,67890.0,0.1402]
[1722141127094,0.00916231,67892.0,67890.0,0.1432]
[1722141127643,0.00916231,67892.0,67890.0,0.262037]
[1722141127836,0.00916231,67892.0,67891.0,0.41975154]
[1722141128135,0.03851706,67893.0,67892.0,0.58917]
[1722141128136,0.02311787,67893.0,67892.0,0.58917]
[1722141128317,0.02311787,67893.0,67892.0,0.965038]
[1722141128700,0.01539919,67902.0,67892.0,0.965038]
[1722141128701,0.01539919,67902.0,67898.0,0.49367]
[1722141129405,0.01539919,67902.0,67898.0,0.258023]
[1722141129580,0.01539919,67902.0,67898.0,0.49367]
[1722141129762,0.01539919,67902.0,67898.0,0.729317]
[1722141130152,0.01539919,67902.0,67898.0,0.736317]
[1722141130153,0.00184,67899.0,67898.0,0.736317]
[1722141130600,0.00184,67899.0,67898.0,1.12222357]
[1722141130801,0.00284,67899.0,67898.0,1.12722357]
[1722141131043,0.00184,67899.0,67898.0,1.12022357]
[1722141131254,0.00084,67899.0,67898.0,1.11522357]
[1722141131781,0.02395409,67899.0,67898.0,1.11522357]
[1722141132431,0.02395409,67899.0,67898.0,1.12322357]
[1722141132432,0.02495409,67899.0,67898.0,1.12322357]
[1722141132580,0.02595409,67899.0,67898.0,1.12922357]
[1722141132789,0.02495409,67899.0,67898.0,0.1462]
[1722141133034,0.118662,67899.0,67898.0,0.0713]
[1722141133188,0.12896536,67899.0,67898.0,0.0713]
[1722141133392,0.12896536,67899.0,67898.0,0.0773]
[1722141133393,0.12996536,67899.0,67898.0,0.0773]
[1722141133846,0.01214336,67899.0,67898.0,0.0693]
[1722141134053,0.00906727,67899.0,67898.0,0.0633]
[1722141134249,0.01006727,67899.0,67898.0,0.0693]
[1722141134876,0.01106727,67899.0,67898.0,0.0773]
[1722141135463,0.01106727,67899.0,67898.0,0.07837607]
[1722141135611,0.002,67899.0,67898.0,0.07837607]
[1722141135805,0.002,67899.0,67898.0,0.0773]
[1722141136230,0.0251147,67899.0,67898.0,0.0773]
[1722141136427,0.03436361,67899.0,67898.0,0.0773]
[1722141136908,0.03436361,67899.0,67898.0,0.07837607]
[1722141137149,0.03436361,67899.0,67898.0,0.19619907]
[1722141137352,0.03436361,67899.0,67898.0,0.195123]
[1722141138165,0.03436361,67899.0,67898.0,0.43077]
[1722141138368,0.0251147,67899.0,67898.0,0.43077]
[1722141139033,0.002,67899.0,67898.0,0.43077]
[1722141139427,0.002,67899.0,67898.0,0.666417]
[1722141139979,0.002,67899.0,67898.0,0.195123]
[1722141141130,0.02511447,67899.0,67898.0,0.195123]
[1722141142197,0.02511447,67899.0,67898.0,0.0773]
[1722141142581,0.002,67899.0,67898.0,0.0773]
[1722141143008,0.002,67899.0,67898.0,0.195123]
[1722141143009,0.01129147,67899.0,67898.0,0.195123]
[1722141143234,0.002,67899.0,67898.0,0.195123]
[1722141143433,0.01129474,67899.0,67898.0,0.43077]
[1722141143635,0.002,67899.0,67898.0,0.195123]
[1722141144041,0.002,67899.0,67898.0,0.43077]
[1722141149231,0.002,67899.0,67898.0,0.747217]
[1722141149609,0.02511462,67899.0,67898.0,0.747217]
[1722141150203,0.02511462,67899.0,67898.0,0.742217]
[1722141153391,0.02511462,67899.0,67898.0,0.50657]
[1722141153540,0.04051381,67899.0,67898.0,0.50657]
[1722141155115,0.01739919,67899.0,67898.0,0.50657]
[1722141155460,0.01739919,67899.0,67898.0,0.742217]
[1722141156542,0.01739919,67899.0,67898.0,0.89247657]
[1722141156697,0.01739919,67899.0,67898.0,0.91547657]
[1722141156894,0.01739919,67899.0,67898.0,1.15112357]
[1722141157099,0.01739919,67899.0,67898.0,1.15145735]
[1722141157299,0.01639919,67899.0,67898.0,1.14545735]
[1722141157904,0.01739919,67899.0,67898.0,1.15145735]
[1722141158425,0.03951291,67899.0,67898.0,1.29875735]
[1722141158959,0.02411372,67899.0,67898.0,1.42914751]
[1722141159196,0.02511372,67899.0,67898.0,1.44314751]
[1722141159506,0.02411372,67899.0,67898.0,1.42914667]
[1722141159751,0.02311372,67899.0,67898.0,1.29383342]
[1722141159996,0.02411372,67899.0,67898.0,1.44314715]
[1722141160240,0.02411372,67899.0,67898.0,1.54422322]
[1722141160440,0.02411372,67899.0,67898.0,1.77879415]
[1722141160638,0.02411372,67899.0,67898.0,1.82277349]
[1722141161019,0.02411372,67899.0,67898.0,1.82277342]
[1722141161221,0.02411372,67899.0,67898.0,1.86734415]
[1722141161566,0.02411372,67899.0,67898.0,2.19521505]
[1722141161703,0.02411372,67899.0,67898.0,1.86994198]
[1722141161904,0.001,67899.0,67898.0,1.58821187]
[1722141162105,0.001,67899.0,67898.0,1.54314737]
[1722141162304,0.001,67899.0,67898.0,1.42075735]
[1722141163431,0.001,67899.0,67898.0,1.42168135]
[1722141163767,0.00184,67899.0,67898.0,1.42168135]
[1722141164315,0.00184,67899.0,67898.0,1.74849651]
[1722141164914,0.02495164,67899.0,67898.0,1.74849651]
[1722141165309,0.02495164,67899.0,67898.0,1.814555]
[1722141165541,0.02495164,67899.0,67898.0,1.74849651]
[1722141166099,0.00184,67899.0,67898.0,1.74849651]
[1722141166732,0.00184,67899.0,67898.0,1.83662359]
[1722141167145,0.00184,67899.0,67898.0,1.74849651]
[1722141167345,0.00184,67899.0,67898.0,1.83662129]
[1722141167570,0.00184,67899.0,67898.0,1.74849651]
[1722141168069,0.00184,67899.0,67898.0,1.87088325]
[1722141169257,0.00184,67899.0,67898.0,2.46046468]
[1722141169455,0.02495088,67899.0,67898.0,2.69611168]
[1722141169643,0.02495088,67899.0,67898.0,1.74849651]
[1722141170484,0.02495088,67899.0,67898.0,1.74849016]
[1722141170818,0.02495088,67899.0,67898.0,1.74849017]
[1722141170999,0.00184,67899.0,67898.0,1.74849017]
[1722141171523,0.00184,67899.0,67898.0,1.74815639]
[1722141171872,0.00184,67899.0,67898.0,1.74849017]
[1722141172837,0.00184,67899.0,67898.0,1.74815639]
[1722141173049,0.00184,67899.0,67898.0,1.74849017]
[1722141173275,0.00184,67899.0,67898.0,1.85883661]
[1722141173630,0.02495081,67899.0,67898.0,1.85883156]
[1722141174385,0.02495081,67899.0,67898.0,1.83676338]
[1722141174748,0.00184,67899.0,67898.0,1.83676338]
[1722141175300,0.00184,67899.0,67898.0,1.74848464]
[1722141175857,0.00184,67899.0,67898.0,1.81469354]
[1722141176404,0.00184,67899.0,67898.0,1.40709025]
[1722141176961,0.00184,67899.0,67898.0,1.40708987]
[1722141177801,0.00184,67899.0,67898.0,1.73389857]
[1722141178008,0.00184,67899.0,67898.0,1.40708987]
[1722141179494,0.00184,67899.0,67898.0,1.99808687]
[1722141179689,0.00184,67899.0,67898.0,2.3810444]
[1722141180446,0.00184,67899.0,67898.0,2.38102421]
[1722141180823,0.00184,67899.0,67898.0,2.38102393]
[1722141181202,0.02494946,67899.0,67898.0,1.86512693]
[1722141181627,0.02494946,67899.0,67898.0,1.83102558]
[1722141181828,0.02494946,67899.0,67898.0,1.74275347]
[1722141182262,0.02494946,67899.0,67898.0,1.86480585]
[1722141182469,0.02494946,67899.0,67898.0,1.86513963]
[1722141182671,0.02494946,67899.0,67898.0,1.8648378]
[1722141182872,0.02494946,67899.0,67898.0,1.74278603]
[1722141183098,0.00184,67899.0,67898.0,1.1710863]
[1722141183845,0.00184,67899.0,67898.0,1.17142008]
[1722141184053,0.00184,67899.0,67898.0,0.6997923]
[1722141184262,0.00184,67899.0,67898.0,0.63265357]
[1722141184263,0.14684,67899.0,67898.0,0.63265357]
[1722141184577,0.08344,67899.0,67898.0,0.86830057]
[1722141186042,0.10655251,67899.0,67898.0,0.86830057]
[1722141187573,0.08344,67899.0,67898.0,0.86830057]
[1722141189829,0.08344,67899.0,67898.0,1.10394757]
[1722141190224,0.08344,67899.0,67898.0,1.10428135]
[1722141190225,0.00184,67899.0,67898.0,1.10428135]
[1722141190426,0.00184,67899.0,67898.0,1.26498135]
[1722141190628,0.00184,67899.0,67898.0,1.34011114]
[1722141190831,0.0249521,67899.0,67898.0,1.66692727]
[1722141191072,0.00184,67899.0,67898.0,1.73316397]
[1722141191432,0.00184,67899.0,67898.0,1.38427234]
[1722141191653,0.00184,67899.0,67898.0,1.34011114]
[1722141192238,0.00184,67899.0,67898.0,1.38427204]
[1722141192440,0.00184,67899.0,67898.0,1.26467736]
[1722141192851,0.00184,67899.0,67898.0,1.30884117]
[1722141193076,0.00184,67899.0,67898.0,1.26467736]
[1722141193262,0.00184,67899.0,67898.0,1.26501114]
[1722141194188,0.00184,67899.0,67898.0,1.12694757]
[1722141194385,0.02495179,67899.0,67898.0,1.12694757]
[1722141196253,0.02495179,67899.0,67898.0,1.19320949]
[1722141198311,0.02495179,67899.0,67898.0,1.52003379]
[1722141198840,0.02495179,67899.0,67898.0,1.12694757]
[1722141198989,0.02495179,67899.0,67898.0,1.5200522]
[1722141199313,0.02495179,67899.0,67898.0,1.45377187]
[1722141199673,0.00184,67899.0,67898.0,1.45377187]
[1722141201291,0.00184,67899.0,67898.0,1.54214565]
[1722141202162,0.00184,67899.0,67898.0,1.12694757]
[1722141202310,0.14424,67899.0,67898.0,0.19096282]
[1722141202513,0.1520452,67899.0,67898.0,0.146747]
[1722141203175,0.17515809,67899.0,67898.0,0.028924]
[1722141203412,0.17515809,67899.0,67898.0,0.146747]
[1722141203615,0.17415809,67899.0,67898.0,0.132747]
[1722141203896,0.14324,67899.0,67898.0,0.143747]
[1722141204095,0.1520452,67899.0,67898.0,0.143747]
[1722141204495,0.1520452,67899.0,67898.0,0.129747]
[1722141204713,0.1520452,67899.0,67898.0,0.141747]
[1722141204714,0.1530452,67899.0,67898.0,0.141747]
[1722141205302,0.1520452,67899.0,67898.0,0.129747]
[1722141205706,0.1530452,67899.0,67898.0,0.137747]
[1722141206310,0.1530452,67899.0,67898.0,0.373394]
[1722141206512,0.14524,67899.0,67898.0,0.373394]
[1722141206874,0.1530452,67899.0,67898.0,0.373394]
[1722141207320,0.17615816,67899.0,67898.0,0.373394]
[1722141210236,0.17615816,67899.0,67898.0,0.137747]
[1722141210400,0.17615816,67899.0,67898.0,0.373394]
[1722141210593,0.17597039,67899.0,67898.0,0.373394]
[1722141211060,0.15285743,67899.0,67898.0,0.373394]
[1722141213662,0.15285743,67899.0,67898.0,0.137747]
[1722141214062,0.15285743,67899.0,67898.0,0.373394]
[1722141214373,0.16816512,67899.0,67898.0,0.373394]
[1722141214587,0.17595232,67899.0,67898.0,0.373394]
[1722141215566,0.15283943,67899.0,67898.0,0.373394]
[1722141216151,0.15283943,67899.0,67898.0,0.609041]
[1722141216511,0.08205223,67899.0,67898.0,0.609041]
[1722141217655,0.10516487,67899.0,67898.0,0.609041]
[1722141221775,0.02576487,67899.0,67898.0,0.609041]
[1722141222383,0.02576487,67899.0,67898.0,0.99494757]
[1722141222583,0.02576487,67899.0,67898.0,1.03914015]
[1722141222781,0.00265223,67899.0,67898.0,0.99494757]
[1722141225070,0.00265223,67899.0,67898.0,1.03914603]
[1722141225276,0.00265223,67899.0,67898.0,0.99494757]
[1722141225941,0.00265223,67899.0,67898.0,1.03914603]
[1722141226157,0.0257645,67899.0,67898.0,1.03914603]
[1722141226701,0.00265223,67899.0,67898.0,1.03914603]
[1722141226840,0.00265223,67899.0,67898.0,1.06214603]
[1722141227262,0.00265223,67899.0,67898.0,1.01794757]
[1722141228733,0.00265223,67899.0,67898.0,1.08426219]
[1722141229056,0.00265223,67899.0,67898.0,1.01794757]
[1722141229257,0.00265223,67899.0,67898.0,1.08426219]
[1722141229661,0.00265223,67899.0,67898.0,1.01794757]
[1722141229961,0.02576429,67899.0,67898.0,1.01794757]
[1722141230302,0.02576429,67899.0,67898.0,1.06216109]
[1722141230505,0.02576429,67899.0,67898.0,1.01794757]
[1722141230707,0.00265223,67899.0,67898.0,1.01794757]
[1722141231728,0.00265223,67899.0,67898.0,1.08426717]
[1722141232130,0.00265223,67899.0,67898.0,1.01794757]
[1722141232773,0.00265223,67899.0,67898.0,1.08426691]
[1722141233175,0.00265223,67899.0,67898.0,1.01794757]
[1722141233457,0.00165223,67899.0,67898.0,1.00994757]
[1722141233618,0.00165223,67899.0,67898.0,1.02094757]
[1722141233821,0.02376415,67899.0,67898.0,1.00994757]
[1722141234024,0.02376415,67899.0,67898.0,1.05416159]
[1722141234244,0.02376415,67899.0,67898.0,1.01294757]
[1722141235186,0.00065223,67899.0,67898.0,1.01294757]
[1722141235672,0.00065223,67899.0,67898.0,1.00994757]
[1722141235964,0.00065223,67899.0,67898.0,1.02394757]
[1722141236160,0.00065223,67899.0,67898.0,1.00994757]
[1722141236287,0.00065223,67899.0,67898.0,1.02394757]
[1722141236973,0.00065223,67899.0,67898.0,1.41710421]
[1722141237307,0.00065223,67899.0,67898.0,1.41710784]
[1722141238466,0.00065223,67899.0,67898.0,1.06816541]
[1722141238467,0.0237639,67899.0,67898.0,1.06816541]
[1722141238861,0.00065223,67899.0,67898.0,1.06816541]
[1722141239559,0.00065223,67899.0,67898.0,1.02394757]
[1722141239959,0.00065223,67899.0,67898.0,1.06816541]
[1722141240260,0.00065223,67899.0,67898.0,1.02394757]
[1722141240423,0.00065223,67899.0,67898.0,1.06816541]
[1722141240623,0.00065223,67899.0,67898.0,1.02394757]
[1722141241270,0.00065223,67899.0,67898.0,1.06816763]
[1722141241442,0.00065223,67899.0,67898.0,1.06816919]
[1722141241650,0.00065223,67899.0,67898.0,0.80952212]
[1722141241651,0.08305223,67899.0,67898.0,0.80952212]
[1722141242024,0.14885223,67899.0,67898.0,0.379394]
[1722141242229,0.1719642,67899.0,67898.0,0.379394]
[1722141242399,0.1719642,67899.0,67898.0,0.615041]
[1722141242621,0.1719642,67899.0,67898.0,0.379394]
[1722141246856,0.14885223,67899.0,67898.0,0.379394]
[1722141250067,0.1719653,67899.0,67898.0,0.379394]
[1722141250270,0.14885223,67899.0,67898.0,0.379394]
[1722141251061,0.17976041,67899.0,67898.0,0.379394]
[1722141252283,0.15664734,67899.0,67898.0,0.379394]
[1722141252483,0.14885223,67899.0,67898.0,0.379394]
[1722141254203,0.15664734,67899.0,67898.0,0.379394]
[1722141255381,0.17196526,67899.0,67898.0,0.143747]
[1722141255610,0.17976037,67899.0,67898.0,0.143747]
[1722141258138,0.17976037,67899.0,67898.0,0.379394]
[1722141260244,0.17976037,67899.0,67898.0,0.143747]
[1722141260449,0.17196526,67899.0,67898.0,0.143747]
[1722141260879,0.17976037,67899.0,67898.0,0.143747]
[1722141263994,0.17976037,67899.0,67898.0,0.025924]
[1722141264193,0.21925437,67899.0,67898.0,0.025924]
[1722141264394,0.41367637,67899.0,67898.0,0.025924]
[1722141264597,0.41534259,67899.0,67898.0,0.025924]
[1722141264999,0.65098659,67899.0,67898.0,0.014924]
[1722141265405,0.65098659,67899.0,67898.0,0.022924]
[1722141265594,0.65098659,67899.0,67898.0,0.008924]
[1722141265996,0.65098659,67899.0,67898.0,0.018924]
[1722141266254,1.16600306,67899.0,67898.0,0.018924]
[1722141266749,1.23913544,67899.0,67898.0,0.018924]
[1722141266949,0.1426,67898.0,67876.0,0.04422373]
[1722141267150,0.1426,67898.0,67872.0,0.08844747]
[1722141267151,0.117859,67878.0,67872.0,0.04422373]
[1722141267354,0.00166622,67879.0,67869.0,0.27996873]
[1722141267528,0.2192,67881.0,67872.0,0.00888636]
[1722141267529,0.235717,67878.0,67872.0,0.00888636]
[1722141267698,0.235717,67878.0,67871.0,0.11787]
[1722141268055,0.235717,67878.0,67869.0,0.39477923]
[1722141268056,0.1426,67875.0,67869.0,0.00877466]
[1722141268255,0.194466,67874.0,67868.0,0.117875]
[1722141268456,0.117867,67873.0,67867.0,0.117876]
[1722141268690,0.117869,67872.0,67867.0,0.117876]
[1722141268960,0.00769121,67872.0,67867.0,0.117876]
[1722141269162,0.00769121,67872.0,67865.0,0.24470793]
[1722141269364,0.260464,67875.0,67872.0,0.012]
[1722141269574,0.260464,67875.0,67865.0,0.24470793]
[1722141269792,0.260464,67875.0,67870.0,0.117872]
[1722141269793,0.1426,67875.0,67870.0,0.117872]
[1722141269905,0.001,67872.0,67868.0,0.353624]
[1722141270110,0.001,67872.0,67869.0,0.117873]
[1722141270317,0.1426,67875.0,67870.0,0.117871]
[1722141270520,0.1426,67875.0,67872.0,0.006]
[1722141270521,0.1436,67875.0,67872.0,0.006]
[1722141270722,0.261464,67875.0,67872.0,0.006]
[1722141271068,0.260464,67875.0,67869.0,0.117873]
[1722141271406,0.001,67873.0,67869.0,0.117873]
[1722141271564,0.001,67873.0,67871.0,0.11787]
[1722141271759,0.1426,67875.0,67869.0,0.353619]
[1722141272266,0.1426,67875.0,67870.0,0.117872]
[1722141272475,0.001,67872.0,67870.0,0.117872]
[1722141272875,0.1426,67875.0,67871.0,0.07512979]
[1722141273215,0.1426,67875.0,67869.0,0.0682]
[1722141273216,0.49788222,67870.0,67869.0,0.01]
[1722141273429,0.89755631,67870.0,67869.0,0.01]
[1722141273641,0.89755631,67870.0,67869.0,0.004]
[1722141273870,0.35531322,67864.0,67863.0,0.009119]
[1722141274068,0.6149683,67864.0,67863.0,0.009119]
[1722141274294,0.81027822,67864.0,67863.0,0.009119]
[1722141275466,0.83340499,67864.0,67863.0,0.009119]
[1722141276053,0.83440499,67864.0,67863.0,0.021119]
[1722141276435,0.75780499,67864.0,67863.0,0.021119]
[1722141276633,0.83540499,67864.0,67863.0,0.031119]
[1722141280934,1.07116999,67864.0,67863.0,0.031119]
[1722141283359,1.07816217,67864.0,67863.0,0.031119]
[1722141285890,1.31392717,67864.0,67863.0,0.031119]
[1722141286477,1.49756631,67864.0,67863.0,0.031119]
[1722141286680,1.36145353,67864.0,67863.0,0.031119]
[1722141287281,1.36045353,67864.0,67863.0,0.021119]
[1722141287696,1.59621853,67864.0,67863.0,0.024119]
[1722141287967,1.36045353,67864.0,67863.0,0.024119]
[1722141289021,1.35945353,67864.0,67863.0,0.009119]
[1722141289363,1.35945353,67864.0,67863.0,0.014119]
[1722141289364,1.36145353,67864.0,67863.0,0.014119]
[1722141289560,1.36145353,67864.0,67863.0,0.009119]
[1722141289968,1.36245353,67864.0,67863.0,0.009119]
[1722141290930,0.93699595,67864.0,67863.0,0.009119]
[1722141291151,0.85829595,67864.0,67863.0,0.009119]
[1722141291370,0.85996217,67864.0,67863.0,0.009119]
[1722141291721,0.85829595,67864.0,67863.0,0.009119]
[1722141292083,0.85996217,67864.0,67863.0,0.009119]
[1722141293766,0.38676595,67864.0,67863.0,0.009119]
[1722141293981,0.62253095,67864.0,67863.0,0.009119]
[1722141294208,0.62419717,67864.0,67863.0,0.009119]
[1722141295252,0.85996217,67864.0,67863.0,0.009119]
[1722141295789,1.05108853,67864.0,67863.0,0.009119]
[1722141296317,1.09391254,67864.0,67863.0,0.009119]
[1722141299264,1.28685353,67864.0,67863.0,0.009119]
[1722141299467,1.32895663,67864.0,67863.0,0.009119]
[1722141299667,1.32895473,67864.0,67863.0,0.009119]
[1722141300269,1.40442442,67864.0,67863.0,0.009119]
[1722141301231,1.40342442,67864.0,67863.0,0.009119]
[1722141301429,1.41142442,67864.0,67863.0,0.010119]
[1722141301748,1.41175197,67864.0,67863.0,0.010119]
[1722141301949,1.56001154,67864.0,67863.0,0.010119]
[1722141302176,1.66901154,67864.0,67863.0,0.011119]
[1722141302350,1.90477654,67864.0,67863.0,0.011119]
[1722141303776,0.00166622,67860.0,67859.0,0.009119]
[1722141304017,0.31674487,67860.0,67859.0,0.009119]
[1722141304319,1.23505131,67860.0,67859.0,0.009119]
[1722141304516,1.71351005,67860.0,67859.0,0.009119]
[1722141304717,1.76063932,67860.0,67859.0,0.009119]
[1722141305575,1.72885815,67860.0,67859.0,0.010119]
[1722141305949,1.71485815,67860.0,67859.0,0.009119]
[1722141306627,1.72885815,67860.0,67859.0,0.009119]
[1722141306971,1.87992361,67860.0,67859.0,0.009119]
[1722141308000,1.50708653,67860.0,67859.0,0.009119]
[1722141308233,1.49308653,67860.0,67859.0,0.009119]
[1722141308633,1.50708653,67860.0,67859.0,0.009119]
[1722141309057,1.49308653,67860.0,67859.0,0.009119]
[1722141309490,1.50167351,67860.0,67859.0,0.009119]
[1722141309899,1.20367502,67860.0,67859.0,0.009119]
[1722141310245,1.17567502,67860.0,67859.0,0.009119]
[1722141310420,1.18967502,67860.0,67859.0,0.009119]
[1722141310828,1.17567502,67860.0,67859.0,0.009119]
[1722141311165,1.18967502,67860.0,67859.0,0.009119]
[1722141311331,1.14664059,67860.0,67859.0,0.009119]
[1722141311576,1.18938148,67860.0,67859.0,0.009119]
[1722141311816,1.14664059,67860.0,67859.0,0.009119]
[1722141312015,1.21251354,67860.0,67859.0,0.009119]
[1722141312126,1.22651354,67860.0,67859.0,0.009119]
[1722141312538,1.19851354,67860.0,67859.0,0.009119]
[1722141312741,1.21391273,67860.0,67859.0,0.009119]
[1722141312956,1.21878071,67860.0,67859.0,0.009119]
[1722141313211,1.20478071,67860.0,67859.0,0.009119]
[1722141313570,1.33656504,67860.0,67859.0,0.009119]
[1722141314722,1.41215715,67860.0,67859.0,0.009119]
[1722141314866,1.29337282,67860.0,67859.0,0.009119]
[1722141315073,1.52915182,67860.0,67859.0,0.009119]
[1722141315312,1.51515182,67860.0,67859.0,0.009119]
[1722141315526,1.55228402,67860.0,67859.0,0.009119]
[1722141315877,1.67963213,67860.0,67859.0,0.009119]
[1722141316417,1.53928402,67860.0,67859.0,0.009119]
[1722141316595,1.55228402,67860.0,67859.0,0.009119]
[1722141316795,1.53828402,67860.0,67859.0,0.009119]
[1722141316997,1.53828402,67860.0,67847.0,0.01]
[1722141316998,0.26597622,67848.0,67847.0,0.01]
[1722141317199,0.89230331,67848.0,67847.0,0.01]
[1722141317405,1.12812431,67848.0,67847.0,0.01]
[1722141317604,1.59976631,67848.0,67847.0,0.01]
[1722141317807,1.58034103,67848.0,67847.0,0.01]
[1722141318023,1.6235538,67848.0,67847.0,0.01]
[1722141318851,1.6315538,67848.0,67847.0,0.01]
[1722141319033,1.6375538,67848.0,67847.0,0.01]
[1722141319959,1.3792538,67848.0,67847.0,0.01]
[1722141320937,1.0635328,67848.0,67847.0,0.01]
[1722141321142,0.77898795,67848.0,67847.0,0.01]
[1722141321344,0.67898795,67848.0,67847.0,0.01]
[1722141321602,0.67916951,67848.0,67847.0,0.01]
[1722141322027,0.91499051,67848.0,67847.0,0.010924]
[1722141322232,0.67916951,67848.0,67847.0,0.010924]
[1722141322362,0.91499051,67848.0,67847.0,0.010924]
[1722141323535,0.67947269,67848.0,67847.0,0.010924]
[1722141323717,0.65633677,67848.0,67847.0,0.010924]
[1722141324317,0.65689023,67848.0,67847.0,0.010924]
[1722141325096,0.89271123,67848.0,67847.0,0.010924]
[1722141325505,0.65689023,67848.0,67847.0,0.010924]
[1722141327084,0.89271123,67848.0,67847.0,0.010924]
[1722141327291,0.65689023,67848.0,67847.0,0.010924]
[1722141327486,0.61209927,67848.0,67847.0,0.010924]
[1722141327788,0.65688837,67848.0,67847.0,0.010924]
[1722141328134,0.67228756,67848.0,67847.0,0.010924]
[1722141328335,0.77320971,67848.0,67847.0,0.010924]
[1722141328537,0.75007514,67848.0,67847.0,0.010924]
[1722141329467,0.98589614,67848.0,67847.0,0.010924]
[1722141329752,0.75007514,67848.0,67847.0,0.010924]
[1722141331121,0.62749846,67848.0,67847.0,0.010924]
[1722141331322,0.7502096,67848.0,67847.0,0.010924]
[1722141331584,0.77334413,67848.0,67847.0,0.010924]
[1722141332014,0.77759542,67848.0,67847.0,0.010924]
[1722141332948,0.99028189,67848.0,67847.0,0.010924]
[1722141333103,0.99006408,67848.0,67847.0,0.010924]
[1722141334064,0.98980021,67848.0,67847.0,0.010924]
[1722141335089,1.06660021,67848.0,67847.0,0.010924]
[1722141337083,1.12930021,67848.0,67847.0,0.010924]
[1722141337283,1.12936278,67848.0,67847.0,0.010924]
[1722141337915,1.06666278,67848.0,67847.0,0.010924]
[1722141338237,0.83084178,67848.0,67847.0,0.010924]
[1722141338534,1.06666278,67848.0,67847.0,0.010924]
[1722141339126,1.08979735,67848.0,67847.0,0.010924]
[1722141339318,0.96750532,67848.0,67847.0,0.010924]
[1722141339640,1.09014401,67848.0,67847.0,0.010924]
[1722141340248,1.13940785,67848.0,67847.0,0.010924]
[1722141340631,0.99363459,67848.0,67847.0,0.010924]
[1722141340842,1.11622149,67848.0,67847.0,0.010924]
[1722141341001,0.99363459,67848.0,67847.0,0.010924]
[1722141341196,1.11622149,67848.0,67847.0,0.010924]
[1722141343189,1.11630277,67848.0,67847.0,0.010924]
[1722141343934,0.99363459,67848.0,67847.0,0.010924]
[1722141344163,1.11633056,67848.0,67847.0,0.010924]
[1722141345185,1.13946521,67848.0,67847.0,0.010924]
[1722141345506,0.75444572,67848.0,67847.0,0.010924]
[1722141345683,0.83124572,67848.0,67847.0,0.073424]
[1722141345883,1.06706672,67848.0,67847.0,0.073424]
[1722141346469,0.83124572,67848.0,67847.0,0.073424]
[1722141346872,1.06706672,67848.0,67847.0,0.073424]
[1722141347480,1.06706672,67848.0,67847.0,0.010924]
[1722141348224,1.08897943,67848.0,67847.0,0.010924]
[1722141349457,0.85315843,67848.0,67847.0,0.010924]
[1722141349825,1.08897943,67848.0,67847.0,0.010924]
[1722141350630,1.09169421,67848.0,67847.0,0.010924]
[1722141351025,1.09169426,67848.0,67847.0,0.010924]
[1722141351393,0.65366246,67848.0,67847.0,0.010924]
[1722141351593,0.85587234,67848.0,67847.0,0.010924]
[1722141352210,1.09169334,67848.0,67847.0,0.010924]
[1722141352459,1.06855869,67848.0,67847.0,0.010924]
[1722141353523,0.16594141,67848.0,67847.0,0.093724]
[1722141353693,0.15844153,67848.0,67847.0,0.156224]
[1722141353894,0.28485373,67848.0,67847.0,0.156224]
[1722141354054,0.44097418,67848.0,67847.0,0.156224]
[1722141354248,0.75649636,67848.0,67847.0,0.156224]
[1722141355489,0.75643862,67848.0,67847.0,0.156224]
[1722141355701,0.91306046,67848.0,67847.0,0.010924]
[1722141356980,0.93590292,67848.0,67847.0,0.010924]
[1722141358194,1.07730292,67848.0,67847.0,0.010924]
[1722141358600,1.01270292,67848.0,67847.0,0.010924]
[1722141358989,0.77688192,67848.0,67847.0,0.010924]
[1722141359191,0.8563307,67848.0,67847.0,0.010924]
[1722141359343,0.77688192,67848.0,67847.0,0.010924]
[1722141360171,0.85636568,67848.0,67847.0,0.010924]
[1722141360372,0.85642543,67848.0,67847.0,0.010924]
[1722141360779,0.85668996,67848.0,67847.0,0.010924]
[1722141361325,1.09251096,67848.0,67847.0,0.010924]
[1722141363137,1.09206668,67848.0,67847.0,0.010924]
[1722141363530,1.09251096,67848.0,67847.0,0.010924]
[1722141364129,1.06937714,67848.0,67847.0,0.010924]
[1722141364934,1.06893286,67848.0,67847.0,0.010924]
[1722141365595,0.83355614,67848.0,67847.0,0.010924]
[1722141365806,0.83311186,67848.0,67847.0,0.010924]
[1722141365972,1.06837654,67848.0,67847.0,0.010924]
[1722141366176,1.06882082,67848.0,67847.0,0.010924]
[1722141367928,1.18268466,67848.0,67847.0,0.010924]
[1722141368176,1.26508466,67848.0,67847.0,0.010924]
[1722141369000,1.14297834,67848.0,67847.0,0.010924]
[1722141369206,1.50231141,67848.0,67847.0,0.010924]
[1722141369496,1.26649041,67848.0,67847.0,0.010924]
[1722141370640,1.50231141,67848.0,67847.0,0.010924]
[1722141370865,1.26649041,67848.0,67847.0,0.010924]